fUSD/lending_fUSD_20250519
["ID","MTS","AMOUNT","RATE_DAILY","PERIOD"]
[361584840,1747624256636,-500.9107837,0.00013873,2]
[361584841,1747624256646,-500.0,0.00013873,2]
[361584842,1747624256655,-500.0,0.00013873,2]
[361584843,1747624256664,-501.63359675,0.00013873,2]
[361584844,1747624256674,-500.0,0.00013873,2]
[361584845,1747624256683,-603.47461649,0.00013873,2]
[361584846,1747624256692,-501.09827647,0.00013873,2]
[361584847,1747624256701,-500.46476542,0.00013873,2]
[361584848,1747624256711,-500.0,0.00013873,2]
[361584849,1747624256720,-505.18117415,0.00013873,2]
[361584850,1747624256730,-509.75877445,0.00013873,2]
[361584851,1747624256739,-503.72748676,0.00013873,2]
[361584852,1747624256749,-152.71682201,0.00013873,2]
[361584853,1747624256758,-500.75243385,0.00013873,2]
[361584854,1747624256768,-500.86829455,0.00013873,2]
[361584855,1747624256777,-178.95881115,0.00013879,2]
[361584856,1747624256786,-198.0,0.00013887,2]
[361584857,1747624256795,-243.0,0.00013887,2]
[361584858,1747624256804,-150.109,0.00013887,2]
[361584859,1747624256813,-150.0,0.00013887,2]
[361584860,1747624256822,-210.162,0.00013887,2]
[361584861,1747624256831,-192.703,0.00013887,2]
[361584862,1747624256840,-284.147,0.00013887,2]
[361584863,1747624256850,-238.851,0.00013887,2]
[361584864,1747624256859,-213.331,0.00013887,2]
[361584865,1747624256868,-183.087,0.00013887,2]
[361584866,1747624256877,-203.392,0.00013887,2]
[361584867,1747624256886,-260.979,0.00013887,2]
[361584868,1747624256895,-1308.0,0.00013887,2]
[361584869,1747624256904,-944.748,0.00013887,2]
[361584870,1747624256913,-799.0,0.00013887,2]
[361584871,1747624256923,-630.0,0.00013887,2]
[361584872,1747624256932,-1320.335,0.00013887,2]
[361584873,1747624256941,-982.865,0.00013887,2]
[361584874,1747624256951,-1459.0,0.00013887,2]
[361584875,1747624256960,-588.822,0.00013887,2]
[361584876,1747624256970,-563.112,0.00013887,2]
[361584877,1747624256979,-178.95881115,0.000139,2]
[361584878,1747624256989,-12500.0,0.000139,2]
[361584879,1747624256998,-1082.79,0.000139,3]
[361584880,1747624257008,-11518.87940498,0.000139,2]
[361584881,1747624257017,-4933.89305367,0.000139,2]
[361584882,1747624257026,-1558.76644636,0.000139,2]
[361584883,1747624257035,-198.26322015,0.000139,2]
[361584884,1747624257044,-500.0,0.00013916,2]
[361584885,1747624257053,-500.0,0.00013916,2]
[361584886,1747624257063,-500.0,0.00013916,2]
[361584887,1747624257074,-882.53,0.00013916,2]
[361584888,1747624257084,-882.53,0.00013916,2]
[361584889,1747624257093,-882.53,0.00013916,2]
[361584890,1747624257103,-397176.68569988,0.00013916,2]
[361584891,1747624257696,-80710.72123168,0.00013916,2]
[361584892,1747624257707,-6173.224748,0.00013916,2]
[361584893,1747624257718,-39139.72153967,0.00013916,2]
[361584894,1747624257735,-328.47396994,0.00013916,2]
[361584895,1747624258003,-0.02070931,0.00013916,2]
[361584896,1747624258014,-523.65,0.00013916,2]
[361584897,1747624258564,-400.0,0.00013698,2]
[361584898,1747624258573,-106.237557,0.00013698,2]
[361584899,1747624258595,-334.802443,0.00013698,2]
[361584900,1747624258604,-400.0,0.00013808,2]
[361584901,1747624258613,-484.22,0.00013808,2]
[361584902,1747624258622,-223832.422821,0.00013916,2]
[361584903,1747624258757,-19.23036832,0.00013916,2]
[361584904,1747624258775,-441.04,0.00013808,2]
[361584905,1747624258784,-527.96,0.00013916,2]
[361584906,1747624258798,-933.975,0.00013916,2]
[361584907,1747624259221,-2314.2,0.000132,2]
[361584908,1747624259230,-500.0,0.00013698,2]
[361584909,1747624259579,-18053.10269819,0.00013916,2]
[361584910,1747624259609,-349.39,0.00013698,2]
[361584911,1747624259618,-192952.64927849,0.00013916,2]
[361584912,1747624259630,-29712.92032012,0.00013916,2]
[361584913,1747624259639,-328.70217805,0.00013916,2]
[361584914,1747624259648,-151.0,0.00013917,2]
[361584915,1747624259658,-151.0,0.00013917,2]
[361584916,1747624259668,-151.0,0.00013917,2]
[361584917,1747624259677,-151.0,0.00013917,2]
[361584918,1747624259687,-400.0,0.00013917,2]
[361584919,1747624259696,-200.0,0.00013917,2]
[361584920,1747624259705,-481.05,0.00013917,2]
[361584921,1747624259715,-400.0,0.00013917,2]
[361584922,1747624259724,-400.0,0.00013917,2]
[361584923,1747624259734,-500.36,0.00013917,2]
[361584924,1747624259743,-400.0,0.00013917,2]
[361584925,1747624259752,-400.0,0.00013917,2]
[361584926,1747624259761,-400.0,0.00013917,2]
[361584927,1747624259770,-400.0,0.00013917,2]
[361584928,1747624259779,-400.0,0.00013917,2]
[361584929,1747624259788,-400.0,0.00013917,2]
[361584930,1747624259798,-438.63,0.00013917,2]
[361584931,1747624259807,-450.71,0.00013917,2]
[361584932,1747624259817,-400.0,0.00013917,2]
[361584933,1747624259826,-400.0,0.00013917,2]
[361584934,1747624259836,-452.06,0.00013917,2]
[361584935,1747624259845,-600.13,0.00013917,2]
[361584936,1747624259854,-400.0,0.00013917,2]
[361584937,1747624259863,-647.0,0.00013917,2]
[361584938,1747624259873,-400.0,0.00013917,2]
[361584939,1747624259882,-424.0,0.00013917,2]
[361584940,1747624259891,-566.76,0.00013917,2]
[361584941,1747624259900,-497.59,0.00013917,2]
[361584942,1747624259909,-400.0,0.00013917,2]
[361584943,1747624259919,-944.51,0.00013917,2]
[361584944,1747624259929,-400.0,0.00013917,2]
[361584945,1747624259938,-802.59,0.00013917,2]
[361584946,1747624259947,-638.7,0.00013917,2]
[361584947,1747624259956,-400.0,0.00013917,2]
[361584948,1747624259966,-400.0,0.00013917,2]
[361584949,1747624259975,-400.0,0.00013917,2]
[361584950,1747624259984,-456.52,0.00013917,2]
[361584951,1747624259993,-400.0,0.00013917,2]
[361584952,1747624260002,-907.32,0.00013917,2]
[361584953,1747624260012,-400.0,0.00013917,2]
[361584954,1747624260021,-400.0,0.00013917,2]
[361584955,1747624260031,-594.07,0.00013917,2]
[361584956,1747624260041,-400.0,0.00013917,2]
[361584957,1747624260051,-400.0,0.00013917,2]
[361584958,1747624260060,-200.0,0.00013917,2]
[361584959,1747624260070,-568.84,0.00013917,2]
[361584960,1747624260080,-400.0,0.00013917,2]
[361584961,1747624260089,-400.0,0.00013917,2]
[361584962,1747624260100,-400.0,0.00013917,2]
[361584963,1747624260110,-400.0,0.00013917,2]
[361584964,1747624260119,-400.0,0.00013917,2]
[361584965,1747624260129,-725.63,0.00013917,2]
[361584966,1747624260139,-400.0,0.00013917,2]
[361584967,1747624260148,-1072.08,0.00013917,2]
[361584968,1747624260157,-634.98,0.00013917,2]
[361584969,1747624260166,-400.0,0.00013917,2]
[361584970,1747624260175,-400.0,0.00013917,2]
[361584971,1747624260185,-574.6,0.00013917,2]
[361584972,1747624260194,-400.0,0.00013917,2]
[361584973,1747624260203,-400.0,0.00013917,2]
[361584974,1747624260212,-229.9,0.00013917,2]
[361584975,1747624260222,-400.0,0.00013917,2]
[361584976,1747624260231,-499.0,0.00013917,2]
[361584977,1747624260240,-261.19273949,0.00013917,2]
[361584978,1747624260249,-400.0,0.00013917,2]
[361584979,1747624260258,-427.95,0.00013917,2]
[361584980,1747624260268,-837.39,0.00013917,2]
[361584981,1747624260277,-1227.17,0.00013917,2]
[361584982,1747624260286,-400.0,0.00013917,2]
[361584983,1747624260296,-437.42,0.00013917,2]
[361584984,1747624260305,-987.22,0.00013917,2]
[361584985,1747624260314,-789.58,0.00013917,2]
[361584986,1747624260323,-400.0,0.00013917,2]
[361584987,1747624260332,-400.0,0.00013917,2]
[361584988,1747624260341,-495.32,0.00013917,2]
[361584989,1747624260353,-436.95,0.00013917,2]
[361584990,1747624260362,-400.0,0.00013917,2]
[361584991,1747624260372,-400.0,0.00013917,2]
[361584992,1747624260381,-400.0,0.00013917,2]
[361584993,1747624260393,-586.7,0.00013917,2]
[361584994,1747624260403,-400.0,0.00013917,2]
[361584995,1747624260413,-400.0,0.00013917,2]
[361584996,1747624260422,-582.83,0.00013917,2]
[361584997,1747624260432,-402.07871355,0.00013917,2]
[361584998,1747624260441,-400.0,0.00013917,2]
[361584999,1747624260450,-400.0,0.00013917,2]
[361585000,1747624260459,-400.0,0.00013917,2]
[361585001,1747624260469,-400.0,0.00013917,2]
[361585002,1747624260478,-420.0,0.00013917,2]
[361585003,1747624260488,-488.95,0.00013917,2]
[361585004,1747624260497,-512.33,0.00013917,2]
[361585005,1747624260506,-462.23,0.00013917,2]
[361585006,1747624260516,-686.16,0.00013917,2]
[361585007,1747624260525,-572.18,0.00013917,2]
[361585008,1747624260534,-614.96,0.00013917,2]
[361585009,1747624260544,-591.64,0.00013917,2]
[361585010,1747624260554,-400.0,0.00013917,2]
[361585011,1747624260564,-407.70407477,0.00013917,2]
[361585012,1747624260573,-798.83,0.00013917,2]
[361585013,1747624260583,-529.42,0.00013917,2]
[361585014,1747624260592,-400.0,0.00013917,2]
[361585015,1747624260603,-467.12,0.00013917,2]
[361585016,1747624260612,-400.0,0.00013917,2]
[361585017,1747624260622,-429.08,0.00013917,2]
[361585018,1747624260632,-1174.04,0.00013917,2]
[361585019,1747624260641,-776.8,0.00013917,2]
[361585020,1747624260651,-400.0,0.00013917,2]
[361585021,1747624260660,-483.43,0.00013917,2]
[361585022,1747624260670,-619.35,0.00013917,2]
[361585023,1747624260679,-689.98,0.00013917,2]
[361585024,1747624260688,-407.30099033,0.00013917,2]
[361585025,1747624260698,-400.0,0.00013917,2]
[361585026,1747624260708,-519.71,0.00013917,2]
[361585027,1747624260717,-535.34,0.00013917,2]
[361585028,1747624260727,-820.69,0.00013917,2]
[361585029,1747624260736,-400.0,0.00013917,2]
[361585030,1747624260745,-627.36,0.00013917,2]
[361585031,1747624260755,-400.0,0.00013917,2]
[361585032,1747624260764,-539.08,0.00013917,2]
[361585033,1747624260773,-454.66,0.00013917,2]
[361585034,1747624260782,-1076.26,0.00013917,2]
[361585035,1747624260791,-1358.03,0.00013917,2]
[361585036,1747624260801,-400.0,0.00013917,2]
[361585037,1747624260810,-400.0,0.00013917,2]
[361585038,1747624260819,-400.0,0.00013917,2]
[361585039,1747624260828,-400.0,0.00013917,2]
[361585040,1747624260837,-400.0,0.00013917,2]
[361585041,1747624260846,-1048.92,0.00013917,2]
[361585042,1747624260855,-837.93,0.00013917,2]
[361585043,1747624260864,-617.24,0.00013917,2]
[361585044,1747624260874,-400.0,0.00013917,2]
[361585045,1747624260883,-1117.52654064,0.00013917,2]
[361585046,1747624260957,-368.37345936,0.00013917,2]
[361585047,1747624260966,-400.0,0.00013917,2]
[361585048,1747624260975,-556.15,0.00013917,2]
[361585049,1747624260984,-400.0,0.00013917,2]
[361585050,1747624260994,-265.26,0.00013917,2]
[361585051,1747624261003,-400.0,0.00013917,2]
[361585052,1747624261012,-545.13,0.00013917,2]
[361585053,1747624261021,-508.42,0.00013917,2]
[361585054,1747624261030,-400.0,0.00013917,2]
[361585055,1747624261039,-846.59,0.00013917,2]
[361585056,1747624261049,-525.07654064,0.00013917,2]
[361585057,1747624261092,-90.34345936,0.00013917,2]
[361585058,1747624261102,-284.33654064,0.00013917,2]
[361585059,1747624488305,1076.0,0.00011398,2]
[361585060,1747624497774,-162.02424579,0.00011998,2]
[361585061,1747624499588,484.1,0.00010763,2]
[361585062,1747624501099,-226.8154,0.00011998,2]
[361585063,1747624503257,-200.0,0.00011998,2]
[361585064,1747624504975,-253.65785344,0.00011998,2]
[361585065,1747624511416,-233.50250077,0.00011998,2]
[361585066,1747625137426,834.19853008,9e-05,2]
[361585067,1747625137448,1612.18198844,9e-05,2]
[361585068,1747625156286,1227.45747891,6.94e-05,2]
[361585069,1747625156312,2839.63946735,6.94e-05,2]
[361585070,1747625156337,2839.63946735,6.94e-05,2]
[361585071,1747625156365,2682.25510513,6.94e-05,2]
[361585072,1747625163426,157.38436222,8e-05,2]
[361585073,1747625163449,870.79471391,8e-05,2]
[361585075,1747625351173,-202.0,0.00011952,2]
[361585076,1747625351491,-9742.3772685,0.0001203,2]
[361585077,1747625364090,-213.3627315,0.0001203,2]
[361585078,1747625364110,-219.49294547,0.00012354,2]
[361585079,1747625364130,-200.0,0.00012383,2]
[361585080,1747625364151,-150.0,0.00012412,2]
[361585081,1747625364176,-200.0,0.00012414,2]
[361585082,1747625364197,-233.0,0.00012431,2]
[361585083,1747625364218,-233.0,0.00012434,2]
[361585084,1747625364239,-233.0,0.00012437,2]
[361585085,1747625364259,-233.0,0.00012441,2]
[361585086,1747625364280,-94.59049708,0.00012444,2]
[361585103,1747625432245,-138.40950292,0.00012444,2]
[361585104,1747625432255,-233.0,0.00012447,2]
[361585105,1747625432264,-233.0,0.0001245,2]
[361585106,1747625432273,-233.0,0.00012454,2]
[361585107,1747625432282,-233.0,0.00012457,2]
[361585108,1747625432291,-162.53358749,0.0001246,2]
[361585109,1747625432354,-70.46641251,0.0001246,2]
[361585110,1747625432363,-233.0,0.00012463,2]
[361585111,1747625432372,-233.0,0.00012467,2]
[361585112,1747625432381,-233.0,0.0001247,2]
[361585113,1747625432392,-233.0,0.00012473,2]
[361585114,1747625432401,-233.0,0.00012476,2]
[361585115,1747625432411,-233.0,0.0001248,2]
[361585116,1747625432421,-233.0,0.00012483,2]
[361585117,1747625432431,-233.0,0.00012486,2]
[361585118,1747625432441,-233.0,0.0001249,2]
[361585119,1747625432450,-233.0,0.00012493,2]
[361585120,1747625432460,-170.92,0.00012522,2]
[361585121,1747625432471,-187.95,0.00012528,2]
[361585122,1747625432480,-1000.0,0.00012592,2]
[361585123,1747625432489,-1200.0,0.00012592,2]
[361585124,1747625432498,-300.0,0.00012593,2]
[361585125,1747625432507,-15581.66358749,0.00012594,2]
[361585126,1747625432557,-278.32009924,0.00012594,2]
[361585127,1747625432568,-8040.01631327,0.00012594,2]
[361585128,1747625432577,-1076.0,0.0001263,2]
[361585129,1747625432588,-450.56,0.00012667,2]
[361585130,1747625432597,-620.26,0.00012794,2]
[361585131,1747625432606,-150.0,0.00012794,2]
[361585132,1747625432615,-89.16368673,0.00012841,2]
[361585133,1747625432626,-368.77631327,0.00012841,2]
[361585134,1747625432635,-56.14285368,0.0001289,2]
[361585135,1747625432678,-713.63178299,0.0001289,2]
[361585136,1747625432689,-4424.29810549,0.0001289,2]
[361585137,1747625432698,-219.49294545,0.00012908,2]
[361585138,1747625432707,-353.17,0.00012978,2]
[361585139,1747625432717,-577.85787986,0.00012978,2]
[361585140,1747625432728,-580.24212014,0.00012978,2]
[361585141,1747625432738,-185.55,0.0001299,2]
[361585142,1747625432747,-1003.0,0.00013,2]
[361585143,1747625432756,-150.3,0.00013,2]
[361585144,1747625432766,-550.78,0.00013,2]
[361585145,1747625432776,-550.78,0.00013,2]
[361585146,1747625432785,-550.78,0.00013,2]
[361585147,1747625432795,-550.78,0.00013,2]
[361585148,1747625432804,-550.78,0.00013,2]
[361585149,1747625432814,-484.1,0.00013027,2]
[361585150,1747625432823,-1051.06,0.00013041,2]
[361585151,1747625432833,-150.0,0.00013078,2]
[361585152,1747625432842,-353.24,0.00013078,2]
[361585153,1747625432855,-150.0,0.00013078,2]
[361585154,1747625432864,-150.0,0.00013078,2]
[361585155,1747625432873,-150.0,0.00013078,2]
[361585156,1747625432883,-150.0,0.00013078,2]
[361585157,1747625432893,-906.26682683,0.000131,2]
[361585158,1747625432903,-353.24,0.00013178,2]
[361585159,1747625432912,-93.60105303,0.00013178,2]
[361585160,1747625432952,-56.39894697,0.00013178,2]
[361585161,1747625432962,-150.0,0.00013178,2]
[361585162,1747625432970,-170.04,0.00013178,2]
[361585163,1747625432979,-150.3,0.000132,2]
[361585164,1747625432988,-151.0,0.0001321,2]
[361585165,1747625432997,-155.0,0.0001321,2]
[361585166,1747625433006,-207.4,0.0001321,2]
[361585167,1747625433015,-668.65185757,0.0001321,2]
[361585168,1747625433024,-1076.0,0.00013261,2]
[361585169,1747625433034,-150.0,0.00013278,2]
[361585170,1747625433043,-353.24,0.00013278,2]
[361585171,1747625433053,-450.46,0.00013278,2]
[361585172,1747625433062,-164.47,0.00013278,2]
[361585173,1747625433072,-422.29,0.00013278,2]
[361585174,1747625433082,-150.3,0.000133,2]
[361585175,1747625433092,-167.95462307,0.00013315,2]
[361585176,1747625433102,-500.0,0.00013367,2]
[361585177,1747625433112,-500.0,0.00013367,2]
[361585178,1747625433121,-454.1854877,0.00013367,2]
[361585179,1747625433132,-500.0,0.00013367,2]
[361585180,1747625433142,-500.0,0.00013367,2]
[361585181,1747625433151,-350.0,0.00013367,2]
[361585182,1747625433161,-500.0,0.00013367,2]
[361585183,1747625433171,-165.95692134,0.00013367,2]
[361585184,1747625433183,-334.04307866,0.00013367,2]
[361585185,1747625433193,-204.22692134,0.00013368,2]
[361585186,1747625433205,-6433.01763485,0.00013368,2]
[361585187,1747625433236,-500.0,0.00013367,2]
[361585188,1747625433245,-1365.45817321,0.00013368,2]
[361585189,1747625433262,-500.0,0.00013367,2]
[361585190,1747625433272,-9922.16936544,0.00013368,2]
[361585191,1747625433283,-2571.87429594,0.00013368,2]
[361585192,1747625433295,-3370.04435721,0.00013368,2]
[361585193,1747625433304,-300.0,0.00013378,2]
[361585194,1747625433314,-167.95462307,0.00013452,2]
[361585195,1747625433323,-219.49294545,0.00013462,2]
[361585196,1747625433332,-187.95,0.00013468,2]
[361585197,1747625433342,-6084.5066548,0.000135,2]
[361585198,1747625433352,-167.95462307,0.00013562,2]
[361585199,1747625433360,-200.0,0.00013589,2]
[361585200,1747625433369,-1317.21195059,0.00013598,2]
[361585201,1747625433379,-175.22212604,0.00013598,2]
[361585202,1747625433388,-3647.34366296,0.00013598,2]
[361585203,1747625433397,-562.70069489,0.00013598,2]
[361585204,1747625433406,-1590.9252,0.00013598,2]
[361585205,1747625433416,-13.769812,0.00013598,2]
[361585219,1747625438147,-9881.30646127,0.0001319,2]
[361585220,1747625438201,-603.29893844,0.0001319,2]
[361585221,1747625438211,-500.0,0.00013367,2]
[361585222,1747625438222,-500.0,0.00013367,2]
[361585223,1747625438233,-26.53344411,0.00013367,2]
[361585224,1747625438311,-473.46655589,0.00013367,2]
[361585225,1747625438322,-500.0,0.00013367,2]
[361585226,1747625438333,-512.58856027,0.00013598,2]
[361585227,1747625438347,-263.7000003,0.00013598,2]
[361585228,1747625438358,-673.18068025,0.00013598,2]
[361585229,1747625438381,-587.24916179,0.00013598,2]
[361585230,1747625438392,-424.538785,0.00013598,2]
[361585237,1747625440263,-24.97300039,0.00013598,2]
[361585238,1747625440277,-3767.5888,0.00013598,2]
[361585239,1747625440289,-1317.21195058,0.00013632,2]
[361585240,1747625440302,-3647.34366292,0.00013632,2]
[361585241,1747625440313,-200.0,0.00013653,2]
[361585242,1747625440326,-1317.21195058,0.00013665,2]
[361585243,1747625440339,-3647.34366292,0.00013665,2]
[361585244,1747625440352,-167.95462307,0.00013671,2]
[361585245,1747625440366,-159.31291706,0.00013673,2]
[361585246,1747625440377,-527.68713326,0.00013673,2]
[361585247,1747625440391,-508.75875807,0.00013673,2]
[361585248,1747625440402,-500.0,0.00013673,2]
[361585249,1747625440416,-501.6482699,0.00013673,2]
[361585250,1747625440427,-500.0,0.00013673,2]
[361585251,1747625440440,-500.0,0.00013673,2]
[361585252,1747625440452,-500.520092,0.00013673,2]
[361585253,1747625440466,-354.35098568,0.00013683,2]
[361585254,1747625440477,-163.98,0.00013688,2]
[361585255,1747625440489,-163.98,0.00013688,2]
[361585256,1747625440501,-163.98,0.00013688,2]
[361585257,1747625440514,-200.0,0.00013688,2]
[361585258,1747625440527,-3461.96309172,0.00013697,2]
[361585259,1747625440538,-400.0,0.00013698,2]
[361585260,1747625440552,-514.65743464,0.00013698,2]
[361585261,1747625440563,-462.37034215,0.00013698,2]
[361585262,1747625440576,-3592.935009,0.00013698,2]
[361585263,1747625440592,-1237.664177,0.00013698,2]
[361585264,1747625440604,-1057.506097,0.00013698,2]
[361585265,1747625440616,-400.0,0.00013698,2]
[361585266,1747625440627,-400.0,0.00013698,2]
[361585267,1747625440639,-409.49682374,0.00013698,2]
[361585268,1747625440651,-400.0,0.00013698,2]
[361585269,1747625440662,-443.43,0.00013698,2]
[361585270,1747625440674,-400.0,0.00013698,2]
[361585271,1747625440686,-400.0,0.00013698,2]
[361585272,1747625440698,-400.0,0.00013698,2]
[361585273,1747625440709,-455.41,0.00013698,2]
[361585274,1747625440718,-400.0,0.00013698,2]
[361585275,1747625440729,-400.0,0.00013698,2]
[361585276,1747625440740,-400.0,0.00013698,2]
[361585277,1747625440752,-400.0,0.00013698,2]
[361585278,1747625440767,-400.0,0.00013698,2]
[361585279,1747625440780,-400.0,0.00013698,2]
[361585280,1747625440790,-400.0,0.00013698,2]
[361585281,1747625440800,-443.73,0.00013698,2]
[361585283,1747625440810,-400.0,0.00013698,2]
[361585285,1747625440820,-400.0,0.00013698,2]
[361585286,1747625440831,-400.0,0.00013698,2]
[361585287,1747625440844,-544.39,0.00013698,2]
[361585288,1747625440862,-577.15,0.00013698,2]
[361585289,1747625440874,-400.0,0.00013698,2]
[361585290,1747625440887,-458.54868668,0.00013698,2]
[361585291,1747625440901,-464.99,0.00013698,2]
[361585292,1747625440913,-400.0,0.00013698,2]
[361585293,1747625440924,-400.0,0.00013698,2]
[361585294,1747625440934,-401.12069269,0.00013698,2]
[361585295,1747625440944,-404.77903032,0.00013698,2]
[361585296,1747625440955,-420.00588728,0.00013698,2]
[361585297,1747625440965,-400.0,0.00013698,2]
[361585298,1747625440978,-410.94352978,0.00013698,2]
[361585299,1747625440988,-400.0,0.00013698,2]
[361585300,1747625440999,-507.99,0.00013698,2]
[361585301,1747625441022,-400.0,0.00013698,2]
[361585302,1747625441034,-400.0,0.00013698,2]
[361585303,1747625441045,-400.0,0.00013698,2]
[361585304,1747625441057,-400.0,0.00013698,2]
[361585305,1747625441068,-402.38682399,0.00013698,2]
[361585306,1747625441080,-198.96836746,0.00013698,2]
[361585307,1747625441092,-784.77,0.00013698,2]
[361585308,1747625441102,-400.0,0.00013698,2]
[361585309,1747625441113,-469.35448125,0.00013698,2]
[361585310,1747625441124,-400.0,0.00013698,2]
[361585311,1747625441135,-476.4,0.00013698,2]
[361585312,1747625441146,-400.0,0.00013698,2]
[361585313,1747625441158,-400.0,0.00013698,2]
[361585314,1747625441168,-400.63435672,0.00013698,2]
[361585315,1747625441179,-400.0,0.00013698,2]
[361585316,1747625441190,-400.0,0.00013698,2]
[361585317,1747625441203,-400.0,0.00013698,2]
[361585318,1747625441222,-400.0,0.00013698,2]
[361585319,1747625441235,-400.0,0.00013698,2]
[361585320,1747625441248,-333.80648812,0.00013698,2]
[361585321,1747625441275,-66.19351188,0.00013698,2]
[361585322,1747625441288,-253.58,0.00013698,2]
[361585323,1747625441301,-404.46098506,0.00013698,2]
[361585324,1747625441312,-400.0,0.00013698,2]
[361585325,1747625441324,-400.0,0.00013698,2]
[361585326,1747625441336,-400.0,0.00013698,2]
[361585327,1747625441349,-400.0,0.00013698,2]
[361585328,1747625441360,-400.0,0.00013698,2]
[361585329,1747625441372,-400.0,0.00013698,2]
[361585330,1747625441383,-400.0,0.00013698,2]
[361585331,1747625441397,-400.0,0.00013698,2]
[361585332,1747625441408,-400.0,0.00013698,2]
[361585333,1747625441420,-912.6,0.00013698,2]
[361585334,1747625441431,-400.0,0.00013698,2]
[361585335,1747625441443,-400.0,0.00013698,2]
[361585336,1747625441454,-560.46,0.00013698,2]
[361585337,1747625441466,-393.61779419,0.00013698,2]
[361585338,1747625441479,-567.94,0.00013698,2]
[361585339,1747625441490,-400.0,0.00013698,2]
[361585340,1747625441500,-400.0,0.00013698,2]
[361585341,1747625441511,-402.15318513,0.00013698,2]
[361585342,1747625441522,-400.0,0.00013698,2]
[361585343,1747625441536,-400.0,0.00013698,2]
[361585344,1747625441548,-400.0,0.00013698,2]
[361585345,1747625441560,-400.0,0.00013698,2]
[361585346,1747625441572,-400.0,0.00013698,2]
[361585347,1747625441583,-400.0,0.00013698,2]
[361585348,1747625441595,-400.0,0.00013698,2]
[361585349,1747625441605,-400.0,0.00013698,2]
[361585350,1747625441616,-400.0,0.00013698,2]
[361585351,1747625441628,-400.0,0.00013698,2]
[361585352,1747625441639,-400.0,0.00013698,2]
[361585353,1747625441650,-400.0,0.00013698,2]
[361585354,1747625441661,-400.0,0.00013698,2]
[361585355,1747625441672,-400.0,0.00013698,2]
[361585356,1747625441683,-400.0,0.00013698,2]
[361585357,1747625441693,-400.0,0.00013698,2]
[361585358,1747625441705,-400.0,0.00013698,2]
[361585359,1747625441717,-400.0,0.00013698,2]
[361585360,1747625441728,-425.98,0.00013698,2]
[361585361,1747625441739,-406.59087404,0.00013698,2]
[361585362,1747625441750,-400.0,0.00013698,2]
[361585363,1747625441761,-400.0,0.00013698,2]
[361585364,1747625441773,-400.0,0.00013698,2]
[361585365,1747625441784,-400.0,0.00013698,2]
[361585366,1747625441796,-400.0,0.00013698,2]
[361585367,1747625441808,-177.69627494,0.00013698,2]
[361585368,1747625441821,-400.0,0.00013698,2]
[361585369,1747625441832,-400.0,0.00013698,2]
[361585370,1747625441845,-400.0,0.00013698,2]
[361585371,1747625441858,-507.99234207,0.00013698,2]
[361585372,1747625441869,-225.83805771,0.00013698,2]
[361585373,1747625441881,-405.08071707,0.00013698,2]
[361585374,1747625441893,-561.49,0.00013698,2]
[361585375,1747625441905,-400.0,0.00013698,2]
[361585376,1747625441916,-400.0,0.00013698,2]
[361585377,1747625441931,-400.0,0.00013698,2]